lending/lending_fUSD_20250819
["ID","MTS","AMOUNT","RATE_DAILY","PERIOD"]
[380170322,1755592232429,-151.0,0.00010097,2]
[380170323,1755592232439,-151.0,0.00010097,2]
[380170325,1755592232448,-203.22,0.00010103,2]
[380170327,1755592232458,-202.72,0.00010103,2]
[380170329,1755592232468,-201.78,0.00010103,2]
[380170331,1755592232478,-1636.46,0.00010104,2]
[380170333,1755592232487,-202.69,0.00010104,2]
[380170335,1755592232496,-305.55,0.00010104,2]
[380170337,1755592232506,-201.2,0.00010104,2]
[380170339,1755592232515,-201.69,0.00010104,2]
[380170341,1755592232526,-201.06,0.00010104,2]
[380170343,1755592232535,-304.75,0.00010104,2]
[380170345,1755592232546,-200.28,0.00010104,2]
[380170347,1755592232555,-201.87,0.00010104,2]
[380170349,1755592232565,-300.33,0.00010104,2]
[380170352,1755592232576,-201.7,0.00010104,2]
[380170354,1755592232586,-203.34,0.00010104,2]
[380170356,1755592232595,-301.64,0.00010104,2]
[380170358,1755592232605,-201.47,0.00010104,2]
[380170360,1755592232614,-202.73,0.00010104,2]
[380170362,1755592232623,-302.58,0.00010104,2]
[380170364,1755592232633,-203.49,0.00010104,2]
[380170366,1755592232642,-200.47,0.00010104,2]
[380170368,1755592232651,-302.78,0.00010104,2]
[380170370,1755592232661,-202.16,0.00010104,2]
[380170372,1755592232671,-30.01791259,0.00010104,2]
[380170379,1755592232731,-171.45208741,0.00010104,2]
[380170381,1755592232741,-305.95,0.00010104,2]
[380170383,1755592232750,-202.93,0.00010104,2]
[380170385,1755592232760,-201.94,0.00010104,2]
[380170387,1755592232770,-213.31591912,0.00010104,2]
[380170420,1755592234047,-91.74408088,0.00010104,2]
[380170421,1755592234057,-300.64,0.00010104,2]
[380170422,1755592234067,-200.76,0.00010104,2]
[380170423,1755592234076,-200.58,0.00010104,2]
[380170424,1755592234085,-300.12,0.00010104,2]
[380170425,1755592234095,-203.55,0.00010104,2]
[380170426,1755592234105,-202.59,0.00010104,2]
[380170427,1755592234114,-150.0,0.0001018,2]
[380170428,1755592234124,-254.38298919,0.00010192,2]
[380170429,1755592234135,-45.61701081,0.00010192,2]
[380170430,1755592234145,-150.0,0.00010254,2]
[380170431,1755592234155,-843.87140665,0.00010263,2]
[380170432,1755592234165,-458.43483364,0.00010287,2]
[380170433,1755592234175,-212.02104404,0.00010287,2]
[380170434,1755592234184,-202.86,0.00010288,2]
[380170435,1755592234195,-201.28,0.00010288,2]
[380170436,1755592234205,-300.59,0.00010288,2]
[380170437,1755592234215,-203.77,0.00010288,2]
[380170438,1755592234225,-203.68,0.00010288,2]
[380170439,1755592234235,-203.01,0.00010288,2]
[380170440,1755592234246,-203.67,0.00010288,2]
[380170441,1755592234257,-305.23,0.00010288,2]
[380170442,1755592234267,-200.32,0.00010288,2]
[380170443,1755592234277,-202.96,0.00010288,2]
[380170444,1755592234287,-302.49,0.00010288,2]
[380170445,1755592234296,-203.26,0.00010288,2]
[380170446,1755592234305,-160.0,0.00010449,2]
[380170447,1755592234315,-277.35679052,0.00010449,2]
[380170448,1755592234325,-151.0,0.00010449,2]
[380170449,1755592234334,-151.0,0.00010449,2]
[380170450,1755592234344,-656.70062587,0.000105,2]
[380170451,1755592234353,-692.35562591,0.00010568,2]
[380170452,1755592234363,-150.0,0.0001062,2]
[380170453,1755592234372,-1999.8760811,0.00010704,2]
[380170454,1755592234383,-2500.0,0.00010742,2]
[380170455,1755592234393,-2500.0,0.00010742,2]
[380170456,1755592234402,-2000.0,0.00010742,2]
[380170457,1755592234411,-2500.0,0.00010742,2]
[380170458,1755592234421,-599.0,0.00010782,2]
[380170459,1755592234430,-566.0,0.00010782,2]
[380170460,1755592234439,-1297.0,0.00010782,2]
[380170461,1755592234449,-1656.0,0.00010782,2]
[380170462,1755592234459,-894.0,0.00010782,2]
[380170463,1755592234469,-1172.0,0.00010782,2]
[380170464,1755592234479,-2029.0,0.00010782,2]
[380170465,1755592234491,-6091.0,0.00010782,2]
[380170466,1755592234501,-3371.0,0.00010782,2]
[380170467,1755592234511,-1227.46365007,0.00010782,2]
[380170468,1755592234524,-2924.53634993,0.00010782,2]
[380170469,1755592234534,-904.0,0.00010782,2]
[380170470,1755592234543,-1000.0,0.00010816,2]
[380170471,1755592234553,-3000.0,0.0001089,2]
[380170472,1755592234562,-957.04215946,0.0001089,2]
[380170473,1755592234585,-342.95784054,0.0001089,2]
[380170474,1755592234595,-2400.0,0.0001089,2]
[380170475,1755592234604,-202.67,0.000109,2]
[380170476,1755592234613,-300.96,0.000109,2]
[380170477,1755592234622,-891.13347544,0.000109,2]
[380170478,1755592234634,-783.86675061,0.000109,2]
[380170479,1755592234645,-1695.35726777,0.000109,2]
[380170480,1755592234656,-1629.64250618,0.000109,2]
[380170481,1755592234665,-1746.0,0.000109,2]
[380170482,1755592234676,-5418.48332023,0.00010911,2]
[380170483,1755592234700,-1243.92622151,0.00010911,2]
[380170484,1755592234712,-495.45158696,0.00010911,2]
[380170485,1755592234722,-150.0,0.00010959,2]
[380170486,1755592234731,-238.35,0.00010961,2]
[380170487,1755592234740,-127.75080318,0.00010973,2]
[380170488,1755592234752,-372.24919682,0.00010973,2]
[380170489,1755592234761,-505.13495878,0.00010973,2]
[380170490,1755592234770,-10.6158444,0.00010973,2]
[380170491,1755592234805,-489.3841556,0.00010973,2]
[380170492,1755592234815,-24.50652475,0.00010973,2]
[380170530,1755592238619,-681.03439044,0.00010782,2]
[380170531,1755592238630,-573.96560956,0.00010782,2]
[380170532,1755592238639,-475.49347525,0.00010973,2]
[380170533,1755592238648,-433.40794072,0.00010973,2]
[380170534,1755592238659,-66.59205928,0.00010973,2]
[380170535,1755592238669,-500.0,0.00010973,2]
[380170536,1755592238678,-500.0,0.00010973,2]
[380170537,1755592238687,-69.53509338,0.00010973,2]
[380170538,1755592238725,-430.46490662,0.00010973,2]
[380170539,1755592238735,-500.0,0.00010973,2]
[380170540,1755592238744,-150.0,0.00010986,2]
[380170541,1755592238754,-150.0,0.00010986,2]
[380170542,1755592238763,-150.0,0.00010986,2]
[380170543,1755592238772,-150.0,0.00010986,2]
[380170544,1755592238782,-150.0,0.00010986,2]
[380170545,1755592238792,-202.94534904,0.00010986,2]
[380170546,1755592238802,-255.89116141,0.00010986,2]
[380170547,1755592238812,-3630.28558624,0.00010998,2]
[380170552,1755592240104,-908.20094026,0.00010998,2]
[380170556,1755592242916,-5552.32452845,0.00010998,2]
[380170557,1755592242993,-2270.94007822,0.00010998,2]
[380170558,1755592243111,-888.0,0.00010998,2]
[380171221,1755592423003,1000.0,0.0001,60]
[380171222,1755592437383,1100.0,9.52e-05,2]
[380171223,1755592438263,2000.0,9.52e-05,2]
[380171225,1755592541997,169.79,9.663e-05,2]
[380171408,1755592591467,150.0,0.00020172,120]
[380171409,1755592651462,150.0,0.0002196,120]
[380171410,1755592669973,12399.12,9.604e-05,2]
[380171411,1755592703544,3199.51,9.33e-05,2]
[380171412,1755592715993,1000.0,9.34e-05,2]
[380171414,1755592773745,150.0,0.00018485,120]
[380171415,1755592816172,180.28,9.262e-05,2]
[380171416,1755592829175,1266.76,9.262e-05,2]
[380171417,1755592969830,1281.39,9.193e-05,2]
[380171418,1755592983088,1315.22,9.193e-05,2]
[380171419,1755593001459,2212.57,9.2e-05,2]
[380171420,1755593010827,150.0,0.00020033,120]
[380171424,1755593180526,1000.0,9.213e-05,2]
[380171425,1755593194944,150.0,8.9e-05,2]
[380171427,1755593219240,2215.25,9.269e-05,2]
[380171432,1755593274324,-216.09326782,0.0001477,30]
[380171433,1755593274362,-216.09326782,0.00014957,30]
[380171434,1755593274400,-216.09326782,0.00015144,30]
[380171435,1755593274435,-216.09326782,0.00015331,30]
[380171436,1755593274472,-215.99326782,0.00015518,30]
[380171437,1755593274525,-311.32822586,0.00018948,30]
[380171438,1755593274753,-310.06641129,0.00019895,30]
[380171439,1755593274792,-5048.65999326,0.0002,30]
[380171440,1755593274826,-200.0,0.0002025,30]
[380171441,1755593274861,-310.00332056,0.0002089,30]
[380171442,1755593274894,-562.60833535,0.000209,30]
[380171443,1755593274934,-2960.44,0.00021945,30]
[380171444,1755593274974,-458.43483364,0.00022,30]
[380171445,1755593275009,-212.02104404,0.00022,30]
[380171446,1755593275045,-150.0,0.00022525,120]
[380171447,1755593275081,-150.0,0.00022673,120]
[380171448,1755593275116,-1219.03629298,0.00023,30]
[380171449,1755593275149,-543.19420285,0.00023,30]
[380171450,1755593275182,-150.0,0.00023079,120]
[380171451,1755593275214,-10651.40576969,0.000235,30]
[380171452,1755593275248,-150.0,0.00023711,120]
[380171453,1755593275281,-222.745959,0.00023899,30]
[380171454,1755593275315,-2170.77097087,0.00024,30]
[380171455,1755593275350,-500.0,0.00024,30]
[380171456,1755593275382,-501.20297787,0.00024,30]
[380171457,1755593275414,-500.0,0.00024,30]
[380171458,1755593275445,-500.0,0.00024,30]
[380171459,1755593275476,-500.0,0.00024,30]
[380171460,1755593275510,-961.38609621,0.00024,30]
[380171461,1755593275546,-500.0,0.00024,30]
[380171462,1755593275581,-500.0,0.00024,30]
[380171463,1755593275618,-500.0,0.00024,30]
[380171464,1755593275651,-500.0,0.00024,30]
[380171465,1755593275683,-590.4602419,0.00024,30]
[380171466,1755593275717,-2200.0,0.00024,30]
[380171467,1755593275757,-500.0,0.00024,30]
[380171468,1755593275790,-500.0,0.00024,30]
[380171469,1755593275828,-2200.0,0.00024,30]
[380171470,1755593275867,-2200.0,0.00024,30]
[380171471,1755593275900,-2200.0,0.00024,30]
[380171472,1755593275933,-2200.0,0.00024,30]
[380171473,1755593275966,-2200.0,0.00024,30]
[380171474,1755593275999,-500.0,0.00024,30]
[380171475,1755593276035,-2200.0,0.00024,30]
[380171476,1755593276070,-1400.0,0.00024,30]
[380171477,1755593276107,-500.0,0.00024,30]
[380171478,1755593276144,-2200.0,0.00024,30]
[380171479,1755593276182,-1400.0,0.00024,30]
[380171480,1755593276220,-500.0,0.00024,30]
[380171481,1755593276260,-2200.0,0.00024,30]
[380171482,1755593276299,-500.0,0.00024,30]
[380171483,1755593276340,-1400.0,0.00024,30]
[380171484,1755593276381,-597.97213434,0.00024,30]
[380171485,1755593276416,-500.0,0.00024,30]
[380171486,1755593276454,-2200.0,0.00024,30]
[380171487,1755593276494,-1400.0,0.00024,30]
[380171488,1755593276531,-500.0,0.00024,30]
[380171489,1755593276563,-1400.0,0.00024,30]
[380171490,1755593276597,-500.0,0.00024,30]
[380171491,1755593276628,-2200.0,0.00024,30]
[380171492,1755593276659,-500.0,0.00024,30]
[380171493,1755593276693,-2200.0,0.00024,30]
[380171494,1755593276728,-500.0,0.00024,30]
[380171495,1755593276765,-1400.0,0.00024,30]
[380171496,1755593276802,-2200.0,0.00024,30]
[380171497,1755593276841,-500.0,0.00024,30]
[380171498,1755593276874,-1400.0,0.00024,30]
[380171499,1755593276905,-3886.07307555,0.00024,30]
[380171500,1755593276936,-660.31638224,0.00024,30]
[380171501,1755593276968,-1400.0,0.00024,30]
[380171502,1755593276999,-900.0,0.00024,30]
[380171503,1755593277031,-900.0,0.00024,30]
[380171504,1755593277065,-1400.0,0.00024,30]
[380171505,1755593277109,-1400.0,0.00024,30]
[380171506,1755593277149,-900.0,0.00024,30]
[380171507,1755593277187,-1400.0,0.00024,30]
[380171508,1755593277225,-900.0,0.00024,30]
[380171509,1755593277260,-1400.0,0.00024,30]
[380171510,1755593277293,-900.0,0.00024,30]
[380171511,1755593277326,-500.0,0.00024,30]
[380171512,1755593277358,-500.0,0.00024,30]
[380171513,1755593277390,-1400.0,0.00024,30]
[380171514,1755593277424,-500.0,0.00024,30]
[380171515,1755593277455,-500.0,0.00024,30]
[380171516,1755593277488,-1834.69034784,0.00024,30]
[380171517,1755593277521,-900.0,0.00024,30]
[380171518,1755593277556,-500.0,0.00024,30]
[380171519,1755593277590,-500.0,0.00024,30]
[380171520,1755593277621,-500.0,0.00024,30]
[380171521,1755593277653,-500.0,0.00024,30]
[380171522,1755593277684,-900.0,0.00024,30]
[380171523,1755593277715,-500.0,0.00024,30]
[380171524,1755593277748,-900.0,0.00024,30]
[380171525,1755593277780,-500.0,0.00024,30]
[380171526,1755593277813,-678.81830352,0.00024,30]
[380171527,1755593277844,-500.0,0.00024,30]
[380171528,1755593277879,-500.0,0.00024,30]
[380171529,1755593277911,-985.12714735,0.00024,30]
[380171530,1755593277946,-900.0,0.00024,30]
[380171531,1755593277978,-714.89201082,0.00024,30]
[380171532,1755593278011,-900.0,0.00024,30]
[380171533,1755593278045,-900.0,0.00024,30]
[380171534,1755593278079,-900.0,0.00024,30]
[380171535,1755593278112,-500.0,0.00024,30]
[380171536,1755593278147,-900.0,0.00024,30]
[380171537,1755593278186,-500.0,0.00024,30]
[380171538,1755593278230,-1100.0,0.00024,30]
[380171539,1755593278703,-500.0,0.00024,30]
[380171540,1755593278740,-1762.49216341,0.00024,30]
[380171541,1755593278775,-1100.0,0.00024,30]
[380171542,1755593278810,-500.0,0.00024,30]
[380171543,1755593278844,-500.0,0.00024,30]
[380171544,1755593278879,-1100.0,0.00024,30]
[380171545,1755593278915,-500.0,0.00024,30]
[380171546,1755593278954,-1100.0,0.00024,30]
[380171547,1755593278988,-2200.0,0.00024,30]
[380171548,1755593279023,-500.0,0.00024,30]
[380171549,1755593279059,-1100.0,0.00024,30]
[380171550,1755593279094,-2200.0,0.00024,30]
[380171551,1755593279129,-1100.0,0.00024,30]
[380171552,1755593279164,-500.0,0.00024,30]
[380171553,1755593279200,-500.0,0.00024,30]
[380171554,1755593279236,-2200.0,0.00024,30]
[380171555,1755593279273,-500.0,0.00024,30]
[380171556,1755593279313,-500.0,0.00024,30]
[380171557,1755593279348,-500.0,0.00024,30]
[380171558,1755593279382,-1100.0,0.00024,30]
[380171559,1755593279417,-500.0,0.00024,30]
[380171560,1755593279459,-2200.0,0.00024,30]
[380171561,1755593279497,-1100.0,0.00024,30]
[380171562,1755593279530,-500.0,0.00024,30]
[380171563,1755593279563,-500.0,0.00024,30]
[380171564,1755593279598,-1100.0,0.00024,30]
[380171565,1755593279632,-2200.0,0.00024,30]
[380171566,1755593279664,-500.0,0.00024,30]
[380171567,1755593279700,-1100.0,0.00024,30]
[380171568,1755593279735,-500.0,0.00024,30]
[380171569,1755593279768,-500.0,0.00024,30]
[380171570,1755593279802,-1100.0,0.00024,30]
[380171571,1755593279838,-2200.0,0.00024,30]
[380171572,1755593279876,-973.3764393,0.00024,30]
[380171573,1755593279912,-1100.0,0.00024,30]
[380171574,1755593279944,-500.0,0.00024,30]
[380171575,1755593279977,-1100.0,0.00024,30]
[380171576,1755593280011,-500.0,0.00024,30]
[380171577,1755593280047,-2200.0,0.00024,30]
[380171578,1755593280085,-1100.0,0.00024,30]
[380171579,1755593280125,-500.0,0.00024,30]
[380171580,1755593280163,-1100.0,0.00024,30]
[380171581,1755593280201,-500.0,0.00024,30]
[380171582,1755593280239,-675.92723806,0.00024,30]
[380171583,1755593280276,-1100.0,0.00024,30]
[380171584,1755593280315,-516.0180486,0.00024,30]
[380171585,1755593280351,-1100.0,0.00024,30]
[380171586,1755593280386,-1100.0,0.00024,30]
[380171587,1755593280420,-2200.0,0.00024,30]
[380171588,1755593280456,-1100.0,0.00024,30]
[380171589,1755593280490,-1100.0,0.00024,30]
[380171590,1755593280528,-2200.0,0.00024,30]
[380171591,1755593280563,-1100.0,0.00024,30]
[380171592,1755593280597,-1100.0,0.00024,30]
[380171593,1755593280630,-2200.0,0.00024,30]
[380171594,1755593280664,-1100.0,0.00024,30]
[380171595,1755593280698,-2200.0,0.00024,30]
[380171596,1755593280733,-1100.0,0.00024,30]
[380171597,1755593280766,-1706.41493558,0.00024,30]
[380171598,1755593280801,-2200.0,0.00024,30]
[380171599,1755593280833,-2200.0,0.00024,30]
[380171600,1755593280865,-1100.0,0.00024,30]
[380171601,1755593280896,-3424.82121296,0.00024,30]
[380171602,1755593280929,-1790.07495916,0.00024,30]
[380171603,1755593280961,-500.0,0.00024,30]
[380171604,1755593280992,-646.01434298,0.00024,30]
[380171605,1755593281024,-500.0,0.00024,30]
[380171606,1755593281055,-1400.0,0.00024,30]
[380171607,1755593281088,-1400.0,0.00024,30]
[380171608,1755593281124,-1400.0,0.00024,30]
[380171609,1755593281159,-1400.0,0.00024,30]
[380171610,1755593281198,-1400.0,0.00024,30]
[380171611,1755593281234,-1400.0,0.00024,30]
[380171612,1755593281268,-1400.0,0.00024,30]
[380171613,1755593281301,-1400.0,0.00024,30]
[380171614,1755593281333,-1400.0,0.00024,30]
[380171615,1755593281488,-1400.0,0.00024,30]
[380171616,1755593281531,-1400.0,0.00024,30]
[380171617,1755593281571,-1400.0,0.00024,30]
[380171618,1755593281611,-1400.0,0.00024,30]
[380171619,1755593281651,-1414.14893445,0.00024,30]
[380171620,1755593281691,-458.43483364,0.00024,30]
[380171621,1755593281729,-212.02104404,0.00024,30]
[380171622,1755593281767,-150.0,0.00024179,120]
[380171623,1755593281804,-150.0,0.00024447,30]
[380171624,1755593281844,-150.0,0.00024904,120]
[380171625,1755593281877,-216.0,0.0002493,30]
[380171626,1755593281912,-150.0,0.00024955,120]
[380171627,1755593281944,-150.0,0.00024995,30]
[380171628,1755593281977,-334.63384483,0.00025,60]
[380171629,1755593282010,-160.0,0.00025,30]
[380171630,1755593282043,-843.87140665,0.00025,30]
[380171631,1755593282077,-500.0,0.000251,30]
[380171632,1755593282108,-500.0,0.000251,30]
[380171633,1755593282141,-2200.0,0.000251,30]
[380171634,1755593282172,-500.0,0.000251,30]
[380171635,1755593282209,-500.83733438,0.000251,30]
[380171636,1755593282244,-500.0,0.000251,30]
[380171637,1755593282280,-2200.0,0.000251,30]
[380171638,1755593282312,-500.0,0.000251,30]
[380171639,1755593282345,-500.0,0.000251,30]
[380171640,1755593282378,-1400.0,0.000251,30]
[380171641,1755593282411,-2200.0,0.000251,30]
[380171642,1755593282445,-500.0,0.000251,30]
[380171643,1755593282478,-500.0,0.000251,30]
[380171644,1755593282510,-1400.0,0.000251,30]
[380171645,1755593282541,-2200.0,0.000251,30]
[380171646,1755593282572,-500.0,0.000251,30]
[380171647,1755593282603,-500.0,0.000251,30]
[380171648,1755593282633,-1400.0,0.000251,30]
[380171649,1755593282663,-500.0,0.000251,30]
[380171650,1755593282696,-2200.0,0.000251,30]
[380171651,1755593282728,-500.0,0.000251,30]
[380171652,1755593282759,-500.0,0.000251,30]
[380171653,1755593282789,-1400.0,0.000251,30]
[380171654,1755593282819,-2200.0,0.000251,30]
[380171655,1755593282849,-500.0,0.000251,30]
[380171656,1755593282879,-500.0,0.000251,30]
[380171657,1755593282910,-500.0,0.000251,30]
[380171658,1755593282942,-2200.0,0.000251,30]
[380171659,1755593282973,-500.0,0.000251,30]
[380171660,1755593283005,-500.0,0.000251,30]
[380171661,1755593283040,-2200.0,0.000251,30]
[380171662,1755593283072,-500.0,0.000251,30]
[380171663,1755593283106,-1400.0,0.000251,30]
[380171664,1755593283143,-500.0,0.000251,30]
[380171665,1755593283178,-2200.0,0.000251,30]
[380171666,1755593283213,-500.0,0.000251,30]
[380171667,1755593283251,-500.0,0.000251,30]
[380171668,1755593283290,-1400.0,0.000251,30]
[380171669,1755593283327,-2200.0,0.000251,30]
[380171670,1755593283365,-1400.0,0.000251,30]
[380171671,1755593283402,-500.0,0.000251,30]
[380171672,1755593283439,-2200.0,0.000251,30]
[380171673,1755593283474,-1400.0,0.000251,30]
[380171674,1755593283510,-2200.0,0.000251,30]
[380171675,1755593283547,-1400.0,0.000251,30]
[380171676,1755593283581,-2200.0,0.000251,30]
[380171677,1755593283614,-900.0,0.000251,30]
[380171678,1755593283649,-500.0,0.000251,30]
[380171679,1755593283685,-500.7,0.000251,30]
[380171680,1755593283728,-572.28509451,0.000251,30]
[380171681,1755593283764,-1400.0,0.000251,30]
[380171682,1755593283798,-2200.0,0.000251,30]
[380171683,1755593283832,-900.0,0.000251,30]
[380171684,1755593283867,-500.0,0.000251,30]
[380171685,1755593283900,-1400.0,0.000251,30]
[380171686,1755593283935,-2200.0,0.000251,30]
[380171687,1755593283970,-900.0,0.000251,30]
[380171688,1755593284003,-810.0,0.000251,30]
[380171689,1755593284037,-500.0,0.000251,30]
[380171690,1755593284074,-166.20344084,0.000251,30]
[380171691,1755593284110,-1400.0,0.000251,30]
[380171692,1755593284147,-500.0,0.000251,30]
[380171693,1755593284186,-500.0,0.000251,30]
[380171694,1755593284227,-900.0,0.000251,30]
[380171695,1755593284266,-900.0,0.000251,30]
[380171696,1755593284301,-427.85149818,0.000251,30]
[380171697,1755593284340,-1400.0,0.000251,30]
[380171698,1755593284377,-900.0,0.000251,30]
[380171699,1755593284415,-900.0,0.000251,30]
[380171700,1755593284451,-1400.0,0.000251,30]
[380171701,1755593284486,-900.0,0.000251,30]
[380171702,1755593284522,-900.0,0.000251,30]
[380171703,1755593284557,-500.0,0.000251,30]
[380171704,1755593284594,-719.60611362,0.000251,30]
[380171705,1755593284628,-900.0,0.000251,30]
[380171706,1755593284663,-900.0,0.000251,30]
[380171707,1755593284698,-500.0,0.000251,30]
[380171708,1755593284731,-900.0,0.000251,30]
[380171709,1755593284766,-500.0,0.000251,30]
[380171710,1755593284799,-900.0,0.000251,30]
[380171711,1755593284832,-401.725679,0.000251,30]
[380171712,1755593284864,-500.0,0.000251,30]
[380171713,1755593284899,-500.0,0.000251,30]
[380171714,1755593284934,-900.0,0.000251,30]
[380171715,1755593284971,-992.12370438,0.000251,30]
[380171716,1755593285009,-1100.0,0.000251,30]
[380171717,1755593285044,-900.0,0.000251,30]
[380171718,1755593285079,-1100.0,0.000251,30]
[380171719,1755593285113,-500.0,0.000251,30]
[380171720,1755593285148,-500.0,0.000251,30]
[380171721,1755593285184,-1100.0,0.000251,30]
[380171722,1755593285219,-500.0,0.000251,30]
[380171723,1755593285254,-500.0,0.000251,30]
[380171724,1755593285289,-500.0,0.000251,30]
[380171725,1755593285324,-1100.0,0.000251,30]
[380171726,1755593285357,-500.0,0.000251,30]
[380171727,1755593285391,-500.0,0.000251,30]
[380171728,1755593285426,-500.0,0.000251,30]
[380171729,1755593285460,-1100.0,0.000251,30]
[380171730,1755593285615,-500.0,0.000251,30]
[380171731,1755593285696,-500.0,0.000251,30]
[380171732,1755593285731,-500.0,0.000251,30]
[380171733,1755593285766,-2200.0,0.000251,30]
[380171734,1755593285800,-500.0,0.000251,30]
[380171735,1755593285832,-1100.0,0.000251,30]
[380171736,1755593285865,-500.0,0.000251,30]
[380171737,1755593285896,-500.0,0.000251,30]
[380171738,1755593285930,-500.0,0.000251,30]
[380171739,1755593285963,-516.75211114,0.000251,30]
[380171740,1755593285999,-2200.0,0.000251,30]
[380171741,1755593286041,-500.0,0.000251,30]
[380171742,1755593286082,-500.0,0.000251,30]
[380171743,1755593286124,-500.0,0.000251,30]
[380171744,1755593286163,-1100.0,0.000251,30]
[380171745,1755593286201,-500.0,0.000251,30]
[380171746,1755593286238,-500.0,0.000251,30]
[380171747,1755593286274,-191.97766898,0.000251,30]
[380171748,1755593286309,-500.0,0.000251,30]
[380171749,1755593286347,-1100.0,0.000251,30]
[380171750,1755593286384,-982.02077444,0.000251,30]
[380171751,1755593286418,-2200.0,0.000251,30]
[380171752,1755593286453,-500.0,0.000251,30]
[380171753,1755593286488,-997.72949296,0.000251,30]
[380171754,1755593286529,-500.0,0.000251,30]
[380171755,1755593286562,-500.0,0.000251,30]
[380171756,1755593286604,-215.9781252,0.000251,30]
[380171757,1755593286639,-1100.0,0.000251,30]
[380171758,1755593286674,-2200.0,0.000251,30]
[380171759,1755593286711,-1100.0,0.000251,30]
[380171760,1755593286750,-500.0,0.000251,30]
[380171761,1755593286785,-1100.0,0.000251,30]
[380171762,1755593286820,-2200.0,0.000251,30]
[380171763,1755593286854,-1100.0,0.000251,30]
[380171764,1755593286887,-1100.0,0.000251,30]
[380171765,1755593286921,-2200.0,0.000251,30]
[380171766,1755593286956,-500.0,0.000251,30]
[380171767,1755593286989,-1100.0,0.000251,30]
[380171768,1755593287021,-2200.0,0.000251,30]
[380171769,1755593287053,-1100.0,0.000251,30]
[380171770,1755593287086,-500.0,0.000251,30]
[380171771,1755593287118,-807.34137724,0.000251,30]
[380171772,1755593287153,-1100.0,0.000251,30]
[380171773,1755593287187,-2200.0,0.000251,30]
[380171774,1755593287220,-1100.0,0.000251,30]
[380171775,1755593287254,-500.0,0.000251,30]
[380171776,1755593287289,-1100.0,0.000251,30]
[380171777,1755593287325,-500.0,0.000251,30]
[380171778,1755593287359,-1100.0,0.000251,30]
[380171779,1755593287393,-2200.0,0.000251,30]
[380171780,1755593287426,-500.0,0.000251,30]
[380171781,1755593287462,-500.0,0.000251,30]
[380171782,1755593287500,-1100.0,0.000251,30]
[380171783,1755593287535,-1100.0,0.000251,30]
[380171784,1755593287567,-2200.0,0.000251,30]
[380171785,1755593287599,-500.0,0.000251,30]
[380171786,1755593287630,-500.0,0.000251,30]